Cogmind - Beta 16 @@@ ROGUE MODE // 2025.10.31 @ 06:26:25 Player: beans Result: Destroyed by P-60 Hacker with Shock Rifle Performance ------------- Evolutions (1) 500 Regions Visited (5) 1000 Robots Destroyed (22) 110 Value Destroyed (606) 606 Prototype IDs (23) 460 Alien Tech Used (0) 0 Bonus (434) 434 TOTAL SCORE: 3110 Bonus ------- Follower Combat Kills 134 Aligned with FarCom 300 Cogmind --------- Core Integrity 0/400 Matter 300/300 Energy 87/100 System Corruption 4% Temperature Cool (6) Movement Core (50) Location -9/Exiles Parts ------- > --- POWER (1) -------- (None) > --- PROPULSION (2) --- (None) > --- UTILITY (4) ------ ECM Suite > --- WEAPON (2) ------- (None) > --- INVENTORY (5) ---- High-capacity Matter Pod (17) High-capacity Matter Pod (200) Experimental Sensor Array Rocket Launcher Field Lobotomy Kit (5) Peak State ------------ > --- POWER ------------ Light Nuclear Core > --- PROPULSION ------- (None) > --- UTILITY ---------- High-capacity Matter Pod Compact Matter Pod Compact Matter Pod ECM Suite > --- WEAPON ----------- Light Cannon Light Cannon > --- INVENTORY -------- Experimental Sensor Array Particle Gun Light Assault Rifle EMP Blaster Rocket Launcher [Rating: 14] Favorites ----------- Power Light Nuclear Core Engine Ion Engine Power Core Light Nuclear Core Propulsion Aluminum Leg Leg Aluminum Leg Utility High-capacity Matter Pod Device ECM Suite Storage High-capacity Matter Pod Weapon Light Cannon Ballistic Gun Light Assault Rifle Ballistic Cannon Light Cannon Launcher EMP Blaster Build | -11 -10 -10 -9 -9 -9 ------- Run | Yrd Mat Min Mat Min Exi Slots Evolved 2 | . . . 2 . . Power . | . . . . . . Propulsion . | . . . . . . Utility 2 | . . . 2 . . Weapon . | . . . . . . Parts Attached 15 | 2 2 1 3 6 1 Power 2 | . 1 1 . . . Engine 1 | . 1 . . . . Core 1 | . . 1 . . . Reactor . | . . . . . . Propulsion 2 | . . . . 2 . Treads . | . . . . . . Leg 2 | . . . . 2 . Wheel . | . . . . . . Hover . | . . . . . . Flight . | . . . . . . Utility 5 | . 1 . . 4 . Device 1 | . 1 . . . . Storage 4 | . . . . 4 . Processor . | . . . . . . Hackware . | . . . . . . Protection . | . . . . . . Artifact . | . . . . . . Weapon 6 | 2 . . 3 . 1 Energy Gun . | . . . . . . Energy Cannon . | . . . . . . Ballistic Gun 2 | 2 . . . . . Ballistic Cannon 2 | . . . 2 . . Launcher 2 | . . . 1 . 1 Special Weapon . | . . . . . . Impact Weapon . | . . . . . . Slashing Weapon . | . . . . . . Piercing Weapon . | . . . . . . Special Melee Weapon . | . . . . . . Unidentified Prototypes . | . . . . . . Parts Lost 6 | . . 2 . 1 3 Power 2 | . . 1 . 1 . Propulsion 2 | . . . . . 2 Utility . | . . . . . . Weapon 2 | . . 1 . . 1 Highest Loss Streak 3 | . . 2 . 1 3 To Critical Strikes . | . . . . . . Average Backups 4 | . . 1 3 5 5 Power . | . . . . . . Propulsion . | . . . . . . Utility . | . . . 1 1 1 Weapon 3 | . . . 2 4 3 Tool/Special . | . . . . . . Unused Backups 4 | . . . . . 4 Power . | . . . . . . Propulsion . | . . . . . . Utility 1 | . . . . . 1 Weapon 2 | . . . . . 2 Tool/Special 1 | . . . . . 1 Average Slot Usage (%) 63 | . 36 34 40 69 75 Core 5 | . . 1 9 8 . Leg 10 | . . . . 10 21 Device 11 | . 4 14 11 11 11 Storage 14 | . . . . 17 22 Ballistic Gun 3 | . 28 15 8 . . Ballistic Cannon 16 | . . . 5 22 19 Peak Build Rating 14 | 2 4 5 8 14 10 Average Rating 7 | 1 2 2 7 9 8 On Entrance 4 | . 2 4 3 7 8 Avg Prop Armor Cover (%) 8 | . . . . . 8 Naked Turns . | . . . . . . Heaviest Build 21 | 3 10 10 13 21 17 Greatest Support 20 | 3 3 3 3 20 20 Greatest Overweight (x) 6 | . 3 3 4 6 3 Average Overweight (x) 1 | . . . 2 1 . Largest Inventory Capacity 5 | 5 5 5 5 5 5 Average Capacity 5 | 5 5 5 5 5 5 Most Carried 5 | 2 1 3 5 5 5 Average Carried 4 | . . 1 3 4 4 Final Capacity 5 | 5 5 5 5 5 5 Final Carried 5 | . . 3 5 5 5 Class Distribution -------------------- 100% | Mutant Dominant Class ---------------- Mutant | -10/Materials Mutant | -10/Mines Mutant | -9/Materials Mutant | -9/Mines Mutant | -9/Exiles Resources | -11 -10 -10 -9 -9 -9 ----------- Run | Yrd Mat Min Mat Min Exi Matter Collected 718 | 61 51 210 75 282 39 Remotely . | . . . . . . Salvage Created 738 | . 51 143 120 245 179 Parts 42 | . 3 3 3 21 12 Haulers Intercepted 2 | . 1 . 1 . . Recyclers Shooed 1 | . 1 . . . . Parts Field Recycled . | . . . . . . Retrieved Matter . | . . . . . . Parts Self-Destructed . | . . . . . . Prevented . | . . . . . . Parts Restored . | . . . . . . Kills | -11 -10 -10 -9 -9 -9 ------- Run | Yrd Mat Min Mat Min Exi Combat Hostiles Destroyed 16 | . . 3 1 6 6 Guns 4 | . . 3 1 . . Cannons 9 | . . . . 6 3 AOE 3 | . . . . . 3 Classes Destroyed 9 | . 1 1 1 3 3 Tunneler 2 | . . . . 2 . Hauler 2 | . 1 . 1 . . Recycler 1 | . . . . 1 . Swarmer 4 | . . . . 4 . Grunt 8 | . . 3 . 3 2 Sentry 1 | . . . 1 . . Demolisher 1 | . . . . . 1 Hunter 2 | . . . . . 2 Programmer 1 | . . . . . 1 Best Kill Streak 4 | . 1 2 2 3 4 Combat Bots Only 4 | . . 2 1 3 4 Max Kills in Single Turn 2 | . 1 1 2 1 2 Gunslinging . | . . . . . . Exploded 2 | . . . . . 2 Melee . | . . . . . . Uniques/NPCs Destroyed . | . . . . . . Combat | -11 -10 -10 -9 -9 -9 -------- Run | Yrd Mat Min Mat Min Exi Hostile Shots Fired 131 | . . 29 8 25 69 Missed 44 | . . 8 4 9 23 Hits 87 | . . 21 4 16 46 Projectile 87 | . . 21 4 16 46 AOE 1 | . . . . . 1 Critical Strikes 3 | . . 1 1 . 1 Part Disruptions 1 | . . . . . 1 Damage Taken 1158 | . . 297 86 151 624 Core 493 | . . 85 15 28 365 Absorbed by Shields . | . . . . . . Core Remaining (%) 83 | 100 . 66 . . . Volleys Fired 73 | . 9 15 7 23 19 Largest 2 | . 2 2 2 2 2 Hottest 60 | . 40 40 53 60 60 Shots Fired 135 | . 18 22 14 47 34 Gun 47 | . 18 22 7 . . Cannon 77 | . . . . 47 30 Launcher 11 | . . . 7 . 4 Special . | . . . . . . Kinetic 124 | . 18 22 7 47 30 Thermal . | . . . . . . Explosive 4 | . . . . . 4 Electromagnetic 7 | . . . 7 . . Robot Hit Streak 12 | . 5 12 1 5 5 Robot Miss Streak 4 | . 3 4 4 3 3 Penetration Max . | . . . . . . Secondary Targets . | . . . . . . Shots Hit Robots 68 | . 8 15 3 26 16 Core Hits 36 | . 2 7 3 12 12 Critical Kills . | . . . . . . Critical Parts Destroyed . | . . . . . . Critical Strikes 3 | . . . . 3 . Blast 3 | . . . . 3 . Melee Attacks . | . . . . . . Impact . | . . . . . . Slashing . | . . . . . . Piercing . | . . . . . . Sneak Attacks . | . . . . . . Combat Hostiles . | . . . . . . Follow-up Attacks . | . . . . . . Damage Inflicted 1372 | . 74 144 126 476 552 Guns 233 | . 74 144 15 . . Cannons 733 | . . . . 476 257 Explosions 406 | . . . 111 . 295 Melee . | . . . . . . Ramming . | . . . . . . Kinetic 966 | . 74 144 15 476 257 Thermal . | . . . . . . Explosive 295 | . . . . . 295 Electromagnetic 111 | . . . 111 . . Impact . | . . . . . . Slashing . | . . . . . . Piercing . | . . . . . . Highest Corruption 4 | . . . 1 1 4 Average Corruption 1 | . . . 1 1 1 Corruption Purged . | . . . . . . Corruption Blocked . | . . . . . . Effects 12 | . . . . 8 4 Message Errors 1 | . . . . . 1 Matter Fused 5 | . . . . 3 2 Heat Flow Errors 4 | . . . . 3 1 Data Loss (minor) 1 | . . . . 1 . Misfires 1 | . . . . 1 . Overload Shots . | . . . . . . Overflow Damage . | . . . . . . Projectiles . | . . . . . . Explosions . | . . . . . . Melee . | . . . . . . Knockbacks 8 | . . . . 6 2 Impact . | . . . . . . Kinetic 8 | . . . . 6 2 Secondary . | . . . . . . Self-Inflicted Damage 27 | . . . 27 . . Shots 2 | . . . 2 . . Rammed . | . . . . . . Targets Rammed . | . . . . . . Kicked . | . . . . . . Crushed . | . . . . . . Highest Temperature 275 | . . 37 47 275 186 Average Temperature 62 | . . 13 15 99 106 Received Heat Transfer 336 | . . 186 45 33 72 Effects 2 | . . . . 2 . Interference 2 | . . . . 2 . Siege Activations . | . . . . . . Martial Activations . | . . . . . . Shielding Activations . | . . . . . . Robots Disrupted . | . . . . . . Combat Hostiles . | . . . . . . Robots Corrupted . | . . . . . . Combat Hostiles . | . . . . . . Parts Fried 2 | . . . 2 . . Impact Corruptions . | . . . . . . Robots Melted . | . . . . . . Combat Hostiles . | . . . . . . Parts Melted . | . . . . . . Heat Transferred . | . . . . . . Parts Sabotaged . | . . . . . . Parts Stolen . | . . . . . . Parts Stripped . | . . . . . . Power Chain Reactions . | . . . . . . Alert | -11 -10 -10 -9 -9 -9 ------- Run | Yrd Mat Min Mat Min Exi Maximum Alert Level . | . . . . . . Low Security (%) 100 | 100 100 100 100 100 . Level 1 . | . . . . . . Level 2 . | . . . . . . Level 3 . | . . . . . . Level 4 . | . . . . . . Level 5 . | . . . . . . High Security . | . . . . . . Max Security . | . . . . . . Peak Influence 106 | . 7 58 43 106 . Initial 4 | . . . 2 4 . Average 24 | . 1 21 15 28 . Influence Increases 586 | . 7 108 43 308 120 Destroy 0b10 Robot/C 440 | . . 80 20 220 120 Destroy 0b10 Robot/NC 25 | . 5 . 5 15 . Destroy Leader 74 | . 2 20 12 40 . Allied During Kill 32 | . . 8 6 18 . Disable Machine 15 | . . . . 15 . Influence Decreases 536 | . 7 100 38 221 170 Entered New Map 115 | . . . 6 9 100 Time Decay 351 | . 7 90 32 182 40 Lost Part 50 | . . 10 . 10 30 Lost Ally 20 | . . . . 20 . Squads Dispatched . | . . . . . . Investigation . | . . . . . . Extermination . | . . . . . . Reinforcement . | . . . . . . Assault . | . . . . . . Garrison . | . . . . . . Intercept . | . . . . . . Searches Triggered . | . . . . . . Construction Impeded . | . . . . . . Haulers Reinforced . | . . . . . . Active Scanning Responses . | . . . . . . Cargo Convoy Interrupts . | . . . . . . Stealth | -11 -10 -10 -9 -9 -9 --------- Run | Yrd Mat Min Mat Min Exi Distress Signals . | . . . . . . Communications Jammed . | . . . . . . Distress Signals . | . . . . . . Times Spotted 34 | . . 4 1 11 18 Peak Tracking Total 9 | . . 2 1 3 9 Tactical Retreats . | . . . . . . Traps | -11 -10 -10 -9 -9 -9 ------- Run | Yrd Mat Min Mat Min Exi Traps Triggered . | . . . . . . Indirectly . | . . . . . . Trap Hack Attempts . | . . . . . . Triggered . | . . . . . . Disarmed . | . . . . . . Reprogrammed . | . . . . . . Reused . | . . . . . . Traps Extracted . | . . . . . . Installed . | . . . . . . Triggered . | . . . . . . Machines | -11 -10 -10 -9 -9 -9 ---------- Run | Yrd Mat Min Mat Min Exi Machines Disabled 3 | . . . . 1 2 Max in Single Turn 1 | . . . . 1 1 Machines Repaired . | . . . . . . Machines Dismantled . | . . . . . . Machines Sabotaged . | . . . . . . Overloaded Fab Kills . | . . . . . . Hacking | -11 -10 -10 -9 -9 -9 --------- Run | Yrd Mat Min Mat Min Exi Machines Accessed 1 | . . . . . 1 Terminals . | . . . . . . Fabricators . | . . . . . . Repair Stations . | . . . . . . Recycling Units . | . . . . . . Scanalyzers . | . . . . . . Garrison Access . | . . . . . . Total Hacks 1 | . . . . . 1 Successful 1 | . . . . . 1 Failed . | . . . . . . Catastrophic . | . . . . . . Database Lockouts . | . . . . . . Manual 1 | . . . . . 1 Terminals . | . . . . . . Fabricators . | . . . . . . Repair Stations . | . . . . . . Recycling Units . | . . . . . . Scanalyzers . | . . . . . . Garrison Access . | . . . . . . Terminal Hacks 1 | . . . . . 1 Proto ID Catalog 1 | . . . . . 1 Fabricator Hacks . | . . . . . . Repair Station Hacks . | . . . . . . Recycling Unit Hacks . | . . . . . . Scanalyzer . | . . . . . . Garrison Access Hacks . | . . . . . . Unauthorized Hacks . | . . . . . . Terminals . | . . . . . . Fabricators . | . . . . . . Repair Stations . | . . . . . . Recycling Units . | . . . . . . Scanalyzers . | . . . . . . Garrison Access . | . . . . . . Data Cores Recovered . | . . . . . . Used . | . . . . . . Hacking Detections . | . . . . . . Full Trace Events . | . . . . . . Feedback Events . | . . . . . . Feedback Blocked . | . . . . . . Robot Schematics Acquired . | . . . . . . Robots Built . | . . . . . . Authchips . | . . . . . . Time . | . . . . . . Total Robot Build Rating . | . . . . . . Part Schematics Acquired . | . . . . . . Parts Built . | . . . . . . Authchips . | . . . . . . Time . | . . . . . . Total Part Build Rating . | . . . . . . Part Studies Acquired . | . . . . . . Parts Repaired . | . . . . . . Time . | . . . . . . Parts Recycled . | . . . . . . Recycled Matter . | . . . . . . Retrieved Matter . | . . . . . . Retrieved Components . | . . . . . . Parts Scanalyzed . | . . . . . . Part Schematics Acquired . | . . . . . . Parts Damaged . | . . . . . . Bothacking | -11 -10 -10 -9 -9 -9 ------------ Run | Yrd Mat Min Mat Min Exi Used RIF Installer . | . . . . . . Robots Hacked . | . . . . . . Non-combat . | . . . . . . Combat . | . . . . . . Robot Hacks Applied . | . . . . . . Relay Couplers Released . | . . . . . . Fabnet Peak Effective % . | . . . . . . Robots Rewired . | . . . . . . Allies Hacked . | . . . . . . Hacks Repelled . | . . . . . . Allies | -11 -10 -10 -9 -9 -9 -------- Run | Yrd Mat Min Mat Min Exi Total Allies 3 | . . 3 . . . Largest Group 3 | . . 3 3 3 . Highest-Rated Group 40 | . . 40 40 40 . Highest-Rated Ally 16 | . . 16 16 16 . Total Orders . | . . . . . . Ally Attacks 30 | . . 17 2 11 . Total Damage 350 | . . 199 32 119 . Kills 6 | . . 1 . 5 . Allies Corrupted . | . . . . . . Allies Melted . | . . . . . . Intel | -11 -10 -10 -9 -9 -9 ------- Run | Yrd Mat Min Mat Min Exi Active Infowar (turns) 171 | . 34 137 . . . ECM 171 | . 34 137 . . . Robot Analysis Total . | . . . . . . Derelict Logs Recovered 1 | . . . . 1 . Drone Launches . | . . . . . . Drone Recoveries . | . . . . . . Exploration | -11 -10 -10 -9 -9 -9 ------------- Run | Yrd Mat Min Mat Min Exi Turns Passed 1801 | 17 79 209 118 1019 359 Spaces Moved 1030 | 26 61 199 47 454 243 Core 508 | 26 61 199 47 170 5 Treads . | . . . . . . Legs 522 | . . . . 284 238 Wheels . | . . . . . . Hover . | . . . . . . Flight . | . . . . . . Fastest Speed 50 | 50 50 50 50 120 50 Average Speed 142 | 50 84 64 187 197 120 Slowest Speed 350 | 50 200 200 250 350 200 Overloaded Moves . | . . . . . . Propulsion Burnouts . | . . . . . . Robots Hopped . | . . . . . . Potential Cave-ins . | . . . . . . Cave-ins Triggered . | . . . . . . Exploration Rate (%) 31 | 3 14 35 7 89 43 Regions Visited 5 Branch Regions 3 Pre-discovered Areas . | . . . . . . Known Exits Taken . | . . . . . . Unknown Exits Taken 5 | 1 1 1 1 1 . Scrap Searched 2 | . . 1 . 1 . Spaces Dug . | . . . . . . Terrain Destroyed 27 | . . . . . 27 Melee . | . . . . . . Projectile . | . . . . . . AOE 27 | . . . . . 27 Terrain Rammed . | . . . . . . Walls Destroyed . | . . . . . . Machines Disabled . | . . . . . . Actions | -11 -10 -10 -9 -9 -9 --------- Run | Yrd Mat Min Mat Min Exi Total 1230 | 29 73 261 64 528 275 Wait 86 | . . 41 3 42 . Move 1025 | 25 60 198 46 453 243 Hop . | . . . . . . Pick Up 13 | 2 2 3 4 1 1 Fast Attach 6 | . . . . 6 . Attach 8 | 2 2 2 2 . . Detach 4 | . . 2 . . 2 Swap 8 | . . . 2 . 6 Drop 7 | . . . . 3 4 Fire 73 | . 9 15 7 23 19 Melee . | . . . . . . Ram . | . . . . . . Kick . | . . . . . . Crush . | . . . . . . Escape Stasis . | . . . . . . Rewire . | . . . . . . Trap . | . . . . . . Miscellaneous . | . . . . . . Route ------- -11/Scrapyard -10/Materials -10/Mines -9/Materials -9/Mines (discovered 3 exits: *Mat x2 / *Exi) -9/Exiles History --------- Turn | Location | Event 9 | -11/Scrapyard | Discovered new exit (range 16) 18 | -11/Scrapyard | Entered Materials 81 | -10/Materials | Discovered new exit (range 8) 97 | -10/Materials | Entered Mines 183 | -10/Mines | Assisted by bots powering up and referring to "LRC-V3" 257 | -10/Mines | Found a damaged Exp. Sensor Array with a note attached 258 | -10/Mines | Found Prototype Device 279 | -10/Mines | Discovered new exit (range 13) 301 | -10/Mines | Build established: Mutant 306 | -10/Mines | Entered Materials 306 | -9/Materials | Accompanied by 3 allies 306 | -9/Materials | Evolved 2 slots: Utility x2 340 | -9/Materials | Discovered new exit (range 13) 424 | -9/Materials | Entered Mines 424 | -9/Mines | Accompanied by 3 allies 431 | -9/Mines | Received a Rocket Launcher from a helpful Derelict 450 | -9/Mines | Discovered new exit (range 11) 545 | -9/Mines | Identified exit to Materials 1438 | -9/Mines | Deemed a non-threat by the Exiles lab entrance 1438 | -9/Mines | Discovered new exit (range 5) 1443 | -9/Mines | Entered Exiles 1473 | -9/Exiles | Met 8R-AWN 1494 | -9/Exiles | Met EX-HEX 1530 | -9/Exiles | Met EX-BIN 1568 | -9/Exiles | Aligned with FarCom system 1569 | -9/Exiles | Given EX-Vault access code 1598 | -9/Exiles | Opened EX-Vault 1604 | -9/Exiles | Found Field Lobotomy Kit 1630 | -9/Exiles | Warned to stay clear of 0b10 Research branches 1648 | -9/Exiles | Exiles lab attacked by MAIN.C 1770 | -9/Exiles | Lost 7 allies 1794 | -9/Exiles | Core integrity fell below 50% 1800 | -9/Exiles | Core integrity fell below 20% 1802 | -9/Exiles | Destroyed by P-60 Hacker with Shock Rifle Last Messages --------------- G-34 Mercenary destroyed. D-53 Grenadier reactivates. D-53 Grenadier destroyed. The unstable cave ceiling collapses. Acquired 30 matter. P-60 Hacker knocked back. Aluminum Leg destroyed. P-60 Hacker destroyed. Aluminum Leg destroyed. Machine disabled. System corrupted: Matter fused (-8). Lgt. Cannon destroyed. Dropped Lgt. Cannon. Slug penetrates G-34 Mercenary. G-34 Mercenary destroyed. Dropped Particle Gun. Dropped EMP Blaster. Slug penetrates Wall. P-60 Hacker destroyed. Acquired 9 matter. Map ----- +----------------------------------------------------+ | """#?????????????????????????????????????? | | """##????????????????????????????????????? | | """""????????????????????????????????????? | | """######????????????????????????????????? | | "X" """"" #????????????????????????????????? | | """ # "???????????????????????????????????? | | """""""""#?????????????????????????????????????? | | ###########?????????????????????????????????????? | | #???????????????????????????????????????????????? | | #???????????????????????????????????????????????? | | ##??????????????????????????????????????????????? | | ##???###########???????????????????????????????? | | #####"""""""""##??????????????????????????????? | | " """ """"##?????????????????????????????? | | "" " #?????????????????????????????? | | " """#?????????????????????????????? | | " "#???????????#####?????????????? | | " "##?????????##" #?????????????? | | ""###???????#" #?????????????# | | """#??###### ##????????????# | | " "#?## g ###????????### | | ##""" ### * !%g ########## | | ?##""" # =[ ![%| *p #" "# | | ??#"""" # ==%% p!g* %!h * | | ??#"" =% =[*=%!# * | | ##"""" @ ][[!=[## | | "" **%%] #"""""#### | | % #######??#### | | ## # ####???????????##### | | % ######??????????????????# | | " % ##???????????????????????? | | "" "" #????????????????????????? | | #""" " " ""# " #????????????????????????? | | ?####""" """##""" """####????????????????????????? | | ????###""""###########???????????????????????????? | | ??????#####??????????????????????????????????????? | | ?????????????????????????????????????????????????? | | ?????????????????????????????????????????????????? | | ?????????????????????????????????????????????????? | | ?????????????????????????????????????????????????? | | ?????????????????????????????????????????????????? | | ?????????????????????????????????????????????????? | | ?????????????????????????????????????????????????? | | ?????????????????????????????????????????????????? | | ?????????????????????????????????????????????????? | | ?????????????????????????????????????????????????? | | ?????????????????????????????????????????????????? | | ?????????????????????????????????????????????????? | | ?????????????????????????????????????????????????? | | ?????????????????????????????????????????????????? | +----------------------------------------------------+ Best States ------------- Heat Dissipation 28 Energy Generation 14 Energy Capacity 250 Matter Stores 700 Matter Capacity 700 Sight Range 16 Terrain Scan Density 10 ECM Strength 1 Evasion (%) 55 Item Schematics ----------------- None Robot Schematics ------------------ None Fabricated ------------ Nothing Repaired ---------- Nothing Studied --------- None Alien Tech Used ----------------- None Achievements -------------- None Challenges ------------ None Game ------ Seed BlastDeepSuperbattery Manual? 0 Play Time 00:13:05 Cumulative 201.1 hours Start 2025.10.31 @ 06:16:41 End 2025.10.31 @ 06:26:25 Sessions 1 Manual Loads 0 Difficulty Rogue Special Mode None Game No. 591 Rogue 590 Adventurer 1 Explorer 0 Win Type - Total 0 Types 0/0/0/0/0/0/0/0/0/0 Lore% 64 Gallery% 60 Achievement% 34 Wizard Run 0 Options --------- Layout 1 ASCII 0 Keyboard 0 Movement Mouse Keybinds 0 Fullscreen 1 Font 24/Smallcaps Map View 50x35 Zoom Use 0% Tactical HUD 0 Map Filters NONE Filters NONE Steam 1 RUN: 2b5b2909-28d1-4aea-b837-2384736ab34c